bitfinex/quotes_SOLUSD_20251024
["timestamp","ask_amount","ask_price","bid_price","bid_amount"]
[1761264494595,0.1,191.44,191.37,0.7]
[1761264495122,0.1,191.44,191.38,15.68914572]
[1761264495622,0.1,191.44,191.39,5.92493338]
[1761264496422,0.76,191.44,191.4,0.7]
[1761264496590,0.76,191.44,191.36,13.58695652]
[1761264496803,0.76,191.44,191.36,13.76438127]
[1761264497107,0.76,191.44,191.37,5.22547943]
[1761264497306,0.76,191.44,191.37,5.92547943]
[1761264497694,0.76,191.44,191.36,13.06438127]
[1761264497902,0.76,191.44,191.38,0.7]
[1761264498407,0.1,191.44,191.38,1.22252063]
[1761264498594,0.1,191.44,191.39,33.75647521]
[1761264498799,0.1,191.44,191.4,0.52246603]
[1761264499025,0.1,191.44,191.4,1.22246603]
[1761264499215,0.1,191.44,191.41,0.7]
[1761264499924,0.1,191.44,191.42,5.22411451]
[1761264500308,0.1,191.44,191.42,5.92411451]
[1761264500518,0.1,191.44,191.42,5.22411451]
[1761264501698,0.1,191.44,191.4,5.92445196]
[1761264502126,0.1,191.44,191.41,0.7]
[1761264502924,0.1,191.44,191.42,5.22411451]
[1761264508526,0.1,191.44,191.42,0.67]
[1761264508704,0.1,191.44,191.4,5.89466039]
[1761264508903,0.1,191.44,191.41,0.67]
[1761264509520,0.1,191.44,191.42,5.22411451]
[1761264513629,0.1,191.44,191.37,0.52254794]
[1761264513630,0.68,191.43,191.37,16.10195464]
[1761264513839,0.1,191.44,191.37,16.10195464]
[1761264513840,0.1,191.44,191.38,0.67]
[1761264514812,0.1,191.44,191.39,18.28726683]
[1761264515540,0.1,191.44,191.4,0.67]
[1761264516462,0.78,191.44,191.4,0.67]
[1761264516847,0.78,191.44,191.41,5.22438744]
[1761264519346,0.78,191.44,191.41,5.89438744]
[1761264521056,0.1,191.44,191.41,5.89438744]
[1761264522457,3.47892459,191.43,191.41,5.89438744]
[1761264522752,0.1,191.44,191.41,5.89438744]
[1761264522960,3.47892459,191.43,191.41,5.89438744]
[1761264523257,0.1,191.44,191.42,0.72]
[1761264523439,3.48319675,191.43,191.42,0.72]
[1761264524343,3.48319675,191.43,191.39,18.28726683]
[1761264524554,3.48319675,191.42,191.41,0.72]
[1761264524933,0.1,191.44,191.41,0.72]
[1761264525134,3.4883857,191.43,191.41,0.72]
[1761264525339,0.1,191.44,191.42,5.22411451]
[1761264525555,3.48871635,191.43,191.42,5.22411451]
[1761264527242,7.37827517,191.43,191.42,5.22411451]
[1761264528981,7.37827517,191.43,191.42,0.72]
[1761264529139,7.37827517,191.43,191.4,0.72]
[1761264529462,7.37827517,191.42,191.4,0.72]
[1761264529631,3.48871635,191.41,191.4,0.72]
[1761264530233,3.48871635,191.41,191.4,5.94466039]
[1761264530833,7.38766868,191.41,191.4,5.94466039]
[1761264532458,7.38766868,191.41,191.39,13.06233345]
[1761264532755,7.38766868,191.4,191.39,13.06233345]
[1761264533162,3.48871635,191.4,191.39,13.06233345]
[1761264533664,3.48871635,191.4,191.39,13.78233345]
[1761264534357,0.1,191.44,191.39,13.78233345]
[1761264534536,7.42904766,191.43,191.4,0.72]
[1761264534736,7.42904766,191.42,191.4,0.72]
[1761264534954,3.51902125,191.41,191.4,0.72]
[1761264535557,0.1,191.44,191.41,10.87647521]
[1761264535757,0.1,191.44,191.42,1.24241145]
[1761264536176,0.1,191.44,191.43,0.72]
[1761264536556,0.1,191.44,191.43,5.94384161]
[1761264537177,0.81,191.48,191.43,19.00344564]
[1761264537354,3.90864522,191.47,191.44,0.72]
[1761264537559,0.1,191.48,191.44,0.72]
[1761264537886,3.90864491,191.47,191.44,0.72]
[1761264538048,0.1,191.48,191.44,0.72]
[1761264538250,3.90864372,191.47,191.44,0.72]
[1761264538475,0.1,191.48,191.44,0.72]
[1761264538657,3.90826688,191.47,191.45,5.22329589]
[1761264538989,0.1,191.48,191.45,5.22329589]
[1761264539169,0.1,191.48,191.45,5.94329589]
[1761264540277,0.81,191.48,191.43,19.00344564]
[1761264540454,0.81,191.48,191.44,0.72]
[1761264541653,0.1,191.48,191.44,0.72]
[1761264542370,0.71,191.47,191.45,5.22329589]
[1761264543262,0.1,191.48,191.46,0.72]
[1761264543458,0.71,191.52,191.46,0.72]
[1761264543665,3.90657706,191.51,191.46,0.72]
[1761264543993,0.81,191.55,191.48,22.88]
[1761264544183,3.90629814,191.54,191.49,0.72]
[1761264544387,0.1,191.55,191.5,18.27676239]
[1761264544683,0.1,191.57,191.53,22.88]
[1761264544877,3.90218931,191.6,191.54,37.68208415]
[1761264545046,3.90218931,191.59,191.54,37.68208415]
[1761264545251,0.81,191.61,191.55,0.72]
[1761264545587,3.89725115,191.6,191.55,0.72]
[1761264546076,0.71,191.6,191.55,0.72]
[1761264546253,0.71,191.6,191.56,5.22029651]
[1761264546670,0.71,191.6,191.56,5.94029651]
[1761264549288,0.71,191.6,191.56,5.22029651]
[1761264550369,0.1,191.61,191.57,0.72]
[1761264550766,0.1,191.61,191.57,37.6620024]
[1761264550955,0.1,191.61,191.58,10.87647521]
[1761264551162,0.1,191.61,191.59,0.5219479]
[1761264551363,0.1,191.64,191.63,22.88]
[1761264551557,0.1,191.69,191.63,33.75647521]
[1761264551762,0.1,191.69,191.64,24.09181173]
[1761264552175,0.1,191.69,191.65,0.69]
[1761264553272,0.1,191.69,191.66,28.09757278]
[1761264553470,0.78,191.69,191.66,28.09757278]
[1761264553794,0.1,191.69,191.66,28.09757278]
[1761264554004,0.1,191.69,191.66,28.78757278]
[1761264555184,0.78,191.69,191.66,28.09757278]
[1761264558863,0.78,191.69,191.64,10.53341585]
[1761264559086,0.78,191.69,191.64,5.21797437]
[1761264559401,0.78,191.69,191.62,5.21866193]
[1761264559689,0.1,191.69,191.63,10.87647521]
[1761264559979,0.1,191.69,191.66,22.88]
[1761264560379,0.1,191.69,191.67,0.69]
[1761264561269,0.1,191.69,191.68,5.21702838]
[1761264561681,0.1,191.69,191.68,5.90702838]
[1761264563167,0.78,191.74,191.69,34.44647521]
[1761264563168,0.1,191.74,191.69,34.44647521]
[1761264563489,0.1,191.74,191.71,18.25674194]
[1761264563675,0.1,191.74,191.71,54.65674194]
[1761264563874,0.1,191.74,191.72,0.69]
[1761264564293,0.1,191.74,191.71,54.65674194]
[1761264564484,0.1,191.74,191.71,55.34674194]
[1761264564884,0.1,191.74,191.72,0.69]
[1761264565686,0.1,191.74,191.73,5.21566786]
[1761264566197,0.1,191.74,191.73,5.90566786]
[1761264566496,0.1,191.77,191.74,0.69]
[1761264566684,0.1,191.77,191.75,36.4]
[1761264567000,0.1,191.77,191.75,38.48773715]
[1761264567181,0.66,191.81,191.75,36.92151238]
[1761264567381,0.66,191.81,191.76,59.28]
[1761264567691,0.66,191.81,191.75,2.08773715]
[1761264567898,0.66,191.81,191.74,41.61513408]
[1761264568074,0.66,191.81,191.74,48.69830189]
[1761264568595,0.66,191.81,191.74,42.31513408]
[1761264569896,0.66,191.81,191.74,41.61513408]
[1761264570271,0.66,191.81,191.74,5.21513408]
[1761264572482,7.08316781,191.82,191.75,1.22151238]
[1761264572798,7.08316781,191.82,191.76,47.25647521]
[1761264572982,0.66,191.81,191.76,36.38]
[1761264574304,0.66,191.81,191.77,5.21457996]
[1761264574885,7.08316781,191.82,191.78,12.09790601]
[1761264575122,0.1,191.89,191.78,34.97790601]
[1761264575404,0.76,191.89,191.8,10.87647521]
[1761264575607,0.76,191.89,191.79,7.78316781]
[1761264575608,0.76,191.89,191.79,7.08316781]
[1761264576191,5.97133833,191.89,191.8,5.21376433]
[1761264576604,0.66,191.88,191.8,5.21376433]
[1761264577395,5.87161263,191.88,191.8,5.21376433]
[1761264577611,0.66,191.87,191.8,5.21376433]
[1761264577908,0.66,191.87,191.79,5.21402857]
[1761264578298,4.10939253,191.87,191.79,5.21402857]
[1761264578500,0.66,191.87,191.79,5.21402857]
[1761264578694,0.66,191.86,191.79,5.21402857]
[1761264580391,4.10939253,191.86,191.79,5.21402857]
[1761264580808,0.66,191.85,191.79,5.21402857]
[1761264582311,4.10939253,191.85,191.79,5.21402857]
[1761264582512,0.66,191.85,191.79,5.21402857]
[1761264582691,0.72,191.84,191.79,5.21402857]
[1761264583289,4.16939253,191.84,191.79,5.21402857]
[1761264583506,0.72,191.84,191.79,5.21402857]
[1761264583712,3.44939253,191.86,191.79,5.21402857]
[1761264583713,0.72,191.83,191.79,5.21402857]
[1761264584424,3.4637233,191.85,191.79,18.77052264]
[1761264584604,0.72,191.87,191.8,0.68]
[1761264584790,3.46315526,191.86,191.8,5.89188767]
[1761264584993,0.72,191.87,191.8,5.89188767]
[1761264585198,4.18336273,191.86,191.8,0.68]
[1761264585397,3.46336273,191.85,191.8,5.89122344]
[1761264585603,3.46336273,191.84,191.8,5.89122344]
[1761264585891,3.46336273,191.83,191.8,5.89122344]
[1761264586213,0.72,191.86,191.8,5.89122344]
[1761264586214,0.72,191.86,191.8,5.21122344]
[1761264586415,3.46559061,191.85,191.81,0.68]
[1761264586711,3.46559061,191.84,191.82,5.21322072]
[1761264586917,3.46559061,191.83,191.82,5.21322072]
[1761264587110,4.39484153,191.88,191.82,5.21322072]
[1761264587311,3.46810478,191.87,191.82,18.24627253]
[1761264587506,3.46810478,191.86,191.82,18.24627253]
[1761264587690,3.46810478,191.85,191.82,18.92627253]
[1761264587891,3.46810478,191.84,191.82,18.92627253]
[1761264588111,5.11484153,191.88,191.82,18.92627253]
[1761264588112,0.72,191.88,191.82,18.92627253]
[1761264588309,3.47092852,191.87,191.82,18.92627253]
[1761264588513,3.47092852,191.86,191.82,18.92627253]
[1761264588789,3.47092852,191.85,191.82,18.92627253]
[1761264589013,3.47092852,191.84,191.82,18.24627253]
[1761264589212,3.47092852,191.83,191.82,18.24627253]
[1761264589595,3.47092852,191.83,191.82,5.21322072]
[1761264590410,4.19092852,191.83,191.77,11.13293512]
[1761264590619,33.75647521,191.78,191.77,9.92293512]
[1761264590793,10.87647521,191.73,191.63,5.2183896]
[1761264590994,7.33284757,191.72,191.63,5.2183896]
[1761264591290,7.33284757,191.72,191.61,22.88]
[1761264591291,11.67986784,191.71,191.61,5.21884096]
[1761264591491,7.33284757,191.7,191.61,5.89884096]
[1761264591717,7.33284757,191.69,191.61,5.89884096]
[1761264591917,3.47092852,191.68,191.61,5.89884096]
[1761264592088,3.47092852,191.67,191.61,18.94617669]
[1761264592293,3.47092852,191.66,191.61,18.94617669]
[1761264592593,3.47092852,191.65,191.61,18.94617669]
[1761264592794,4.97702027,191.71,191.62,0.68]
[1761264592988,3.4810522,191.7,191.62,0.68]
[1761264593204,4.34702027,191.73,191.62,0.68]
[1761264593205,3.4810522,191.69,191.62,0.68]
[1761264593505,23.51,191.74,191.64,22.88]
[1761264593810,23.51,191.74,191.62,37.22]
[1761264593811,3.4824183,191.73,191.66,10.87647521]
[1761264594043,0.63,191.77,191.66,10.87647521]
[1761264594324,5.79602702,191.83,191.7,22.88]
[1761264594325,3.48444152,191.76,191.7,22.88]
[1761264594495,3.48444152,191.75,191.71,0.68]
[1761264594695,0.63,191.8,191.71,0.68]
[1761264594897,0.63,191.8,191.72,18.25578969]
[1761264594898,7.35515429,191.79,191.72,18.25578969]
[1761264595097,4.35302288,191.81,191.72,18.25578969]
[1761264595098,3.48421143,191.78,191.72,18.25578969]
[1761264595399,0.63,191.83,191.73,0.68]
[1761264595400,3.48421143,191.77,191.73,0.68]
[1761264595601,3.48421143,191.76,191.73,0.68]
[1761264595808,0.63,191.8,191.73,0.68]
[1761264595809,3.48421143,191.75,191.73,0.68]
[1761264596025,0.63,191.8,191.73,0.68]
[1761264596317,7.36347084,191.79,191.73,0.68]
[1761264596520,0.63,191.8,191.74,5.21539584]
[1761264596521,3.4892794,191.78,191.74,5.21539584]
[1761264596716,0.63,191.8,191.74,5.21539584]
[1761264596717,3.4892794,191.77,191.74,5.21539584]
[1761264596901,0.63,191.8,191.74,5.21539584]
[1761264596902,3.4892794,191.76,191.74,5.21539584]
[1761264597103,3.4892794,191.75,191.74,5.21539584]
[1761264597297,3.48972467,191.75,191.74,5.89539584]
[1761264597701,4.98302288,191.82,191.74,5.89539584]
[1761264597899,7.36612013,191.81,191.75,0.68]
[1761264598118,7.36612013,191.8,191.75,0.68]
[1761264598310,3.4895137,191.79,191.75,0.68]
[1761264598507,3.4895137,191.78,191.75,0.68]
[1761264598698,5.21269805,191.84,191.73,5.89550569]
[1761264598699,3.4895137,191.77,191.73,5.89550569]
[1761264598899,3.4895137,191.76,191.74,0.68]
[1761264599108,0.63,191.81,191.74,0.68]
[1761264599314,7.36774394,191.8,191.74,0.68]
[1761264599616,3.49058827,191.79,191.75,5.21512385]
[1761264599810,3.49058827,191.78,191.75,5.21512385]
[1761264600001,3.49058827,191.77,191.75,5.21512385]
[1761264600204,3.49058827,191.76,191.75,5.21512385]
[1761264600607,3.49058827,191.76,191.75,0.68]
[1761264600812,3.49082971,191.76,191.75,0.68]
[1761264601427,4.12082971,191.76,191.72,5.21593991]
[1761264601603,4.12082971,191.75,191.68,0.68]
[1761264601808,3.49082971,191.74,191.66,5.21757278]
[1761264602119,3.49082971,191.73,191.66,5.89757278]
[1761264602317,3.49082971,191.72,191.66,28.77757278]
[1761264602530,3.49082971,191.71,191.66,41.82150474]
[1761264602823,3.49082971,191.7,191.66,41.82150474]
[1761264603040,0.63,191.74,191.66,41.82150474]
[1761264603227,3.49384905,191.73,191.66,41.82150474]
[1761264603422,3.49384905,191.72,191.66,41.82150474]
[1761264603605,3.49384905,191.71,191.67,0.68]
[1761264603814,3.49384905,191.7,191.67,0.68]
[1761264604034,4.99353713,191.75,191.67,0.68]
[1761264604213,3.49513502,191.74,191.67,0.68]
[1761264604524,3.49513502,191.73,191.68,5.21702838]
[1761264604726,3.49513502,191.72,191.68,5.21702838]
[1761264605025,3.49513502,191.71,191.68,5.21702838]
[1761264605229,3.49600764,191.7,191.64,5.2181173]
[1761264605527,3.49600764,191.69,191.64,5.2181173]
[1761264605832,11.50647521,191.73,191.64,5.2181173]
[1761264606017,4.12577386,191.72,191.64,5.2181173]
[1761264606328,3.49577386,191.71,191.64,18.26341055]
[1761264606550,3.49577386,191.7,191.64,18.94341055]
[1761264606826,3.49577386,191.69,191.64,18.94341055]
[1761264607128,0.63,191.71,191.64,18.94341055]
[1761264607329,3.49574276,191.7,191.64,18.26341055]
[1761264607509,3.49574276,191.69,191.64,18.26341055]
[1761264607832,0.63,191.7,191.64,18.26341055]
[1761264608026,3.49574352,191.69,191.64,18.26341055]
[1761264608218,0.63,191.7,191.64,18.26341055]
[1761264608731,4.36353713,191.75,191.67,22.88]
[1761264608912,3.49486598,191.74,191.67,22.88]
[1761264609115,4.99353713,191.79,191.68,12.07817804]
[1761264609317,3.49380776,191.78,191.71,22.88]
[1761264609534,3.49380776,191.77,191.71,22.88]
[1761264609827,0.63,191.79,191.72,0.68]
[1761264610029,3.49396599,191.78,191.72,0.68]
[1761264610226,3.49396599,191.77,191.72,0.68]
[1761264610427,3.49406794,191.76,191.72,0.68]
[1761264610625,0.63,191.79,191.72,0.68]
[1761264610826,3.49406818,191.78,191.73,5.21566786]
[1761264611031,3.49406818,191.77,191.73,5.21566786]
[1761264611217,3.49406818,191.76,191.73,5.21566786]
[1761264611417,0.63,191.79,191.73,5.21566786]
[1761264611618,3.49410291,191.78,191.73,5.21566786]
[1761264611836,3.49410291,191.77,191.73,5.21566786]
[1761264612042,3.49410291,191.76,191.72,18.91576485]
[1761264612335,0.63,191.79,191.72,18.91576485]
[1761264612638,3.49412037,191.78,191.72,18.91576485]
[1761264612833,3.49412037,191.77,191.72,18.91576485]
[1761264613039,3.49412037,191.76,191.72,18.91576485]
[1761264613243,0.63,191.79,191.72,18.91576485]
[1761264613426,3.49409693,191.78,191.72,18.91576485]
[1761264613625,3.49409693,191.77,191.72,18.91576485]
[1761264613936,4.99353713,191.82,191.73,0.66]
[1761264614118,8.00535616,191.81,191.73,0.66]
[1761264614314,3.49359667,191.8,191.73,0.66]
[1761264614518,3.49359667,191.79,191.73,0.66]
[1761264614721,3.49359667,191.78,191.73,0.66]
[1761264615036,3.49359667,191.77,191.73,0.66]
[1761264615340,0.63,191.79,191.73,0.66]
[1761264615637,3.49387358,191.78,191.74,5.21539584]
[1761264615842,3.49387358,191.77,191.74,5.21539584]
[1761264616029,3.49387358,191.76,191.74,5.21539584]
[1761264616230,3.49387358,191.75,191.7,0.66]
[1761264616430,3.49387358,191.74,191.7,5.87648408]
[1761264616722,4.99353713,191.78,191.7,18.9176943]
[1761264616931,3.49415767,191.77,191.71,0.66]
[1761264617117,3.49415767,191.76,191.71,0.66]
[1761264617317,3.49415767,191.75,191.71,0.66]
[1761264617515,3.49415767,191.74,191.72,5.21593991]
[1761264617717,0.63,191.78,191.72,5.21593991]
[1761264617937,3.49411526,191.77,191.72,5.21593991]
[1761264618139,3.49411526,191.76,191.72,5.87593991]
[1761264618335,3.49411526,191.75,191.72,5.87593991]
[1761264618532,3.49411526,191.74,191.7,18.2576943]
[1761264618733,0.63,191.78,191.73,0.66]
[1761264618946,3.49415101,191.77,191.71,0.66]
[1761264619131,3.49415101,191.76,191.71,0.66]
[1761264619324,3.49415101,191.75,191.71,0.66]
[1761264619527,3.49415101,191.74,191.71,0.66]
[1761264619724,0.63,191.78,191.71,0.66]
[1761264619919,3.49407493,191.77,191.71,0.66]
[1761264620119,3.49407493,191.76,191.71,0.66]
[1761264620340,3.49407493,191.76,191.69,5.21675536]
[1761264620341,3.49407493,191.75,191.69,5.21675536]
[1761264620546,3.49407493,191.74,191.7,0.66]
[1761264620747,3.49407493,191.73,191.7,0.66]
[1761264620926,4.99353713,191.77,191.7,0.66]
[1761264620927,3.49407493,191.72,191.7,0.66]
[1761264621120,3.49488659,191.71,191.7,0.66]
[1761264621321,3.49488659,191.71,191.69,5.21675536]
[1761264621521,0.63,191.74,191.69,5.21675536]
[1761264621718,3.49517275,191.73,191.69,5.21675536]
[1761264621937,3.49517275,191.72,191.69,5.87675536]
[1761264622143,3.49517275,191.71,191.69,5.87675536]
[1761264622348,3.49517275,191.7,191.69,5.87675536]
[1761264623147,3.49517275,191.7,191.69,5.21675536]
[1761264623347,3.49517275,191.7,191.69,5.87675536]
[1761264624058,3.49517275,191.7,191.69,5.21675536]
[1761264624655,4.12517275,191.7,191.64,13.70480539]
[1761264624855,3.49517275,191.69,191.64,13.70480539]
[1761264625032,3.49517275,191.68,191.64,13.70480539]
[1761264625231,3.49517275,191.67,191.64,13.70480539]
[1761264625534,3.49517275,191.66,191.64,5.2181173]
[1761264625739,0.63,191.7,191.64,5.2181173]
[1761264625941,3.49600466,191.69,191.64,5.2181173]
[1761264626141,3.49600466,191.68,191.64,5.2181173]
[1761264626342,3.49600466,191.67,191.64,5.2181173]
[1761264626531,3.49600466,191.66,191.64,5.2181173]
[1761264626726,0.63,191.7,191.64,5.2181173]
[1761264626951,3.49585199,191.69,191.64,5.2181173]
[1761264627149,3.49585199,191.68,191.64,5.2181173]
[1761264627352,3.49585199,191.67,191.64,5.2181173]
[1761264627549,3.49585199,191.66,191.64,5.2181173]
[1761264627856,4.99353713,191.7,191.64,5.2181173]
[1761264628058,3.49569708,191.69,191.64,5.2181173]
[1761264628242,3.49569708,191.68,191.64,5.2181173]
[1761264628436,3.49569708,191.67,191.64,5.2181173]
[1761264628633,3.49569708,191.66,191.64,5.2181173]
[1761264628838,4.99353713,191.7,191.64,0.66]
[1761264629065,3.49564297,191.69,191.64,0.66]
[1761264629254,3.49564297,191.68,191.64,0.66]
[1761264629453,3.49564297,191.67,191.64,0.66]
[1761264629646,3.49564297,191.66,191.64,0.66]
[1761264629959,4.99353713,191.7,191.64,28.7581173]
[1761264629960,3.49564297,191.65,191.64,28.7581173]
[1761264632562,3.49564297,191.65,191.62,5.2185467]
[1761264632743,3.49564297,191.64,191.63,0.66]
[1761264634757,3.49564297,191.64,191.63,5.8783896]
[1761264643269,3.49564297,191.64,191.63,5.2183896]
[1761264644371,3.49564297,191.64,191.62,5.21866193]
[1761264644670,3.49564297,191.63,191.62,5.21866193]
[1761264645262,7.8591801,191.63,191.62,5.21866193]
[1761264646171,7.8591801,191.63,191.61,28.09893429]
[1761264646359,3.49564297,191.62,191.61,28.78893429]
[1761264646673,3.49564297,191.62,191.61,28.09893429]
[1761264647567,3.49564297,191.62,191.61,28.78893429]
[1761264648075,7.8591801,191.62,191.61,28.09893429]
[1761264648275,3.49564297,191.62,191.61,28.78893429]
[1761264650250,3.49564297,191.62,191.61,28.09893429]
[1761264651469,3.49564297,191.62,191.61,28.78893429]
[1761264651871,3.49564297,191.62,191.61,28.09893429]
[1761264652457,3.49564297,191.62,191.61,28.78893429]
[1761264657470,3.49564297,191.62,191.61,28.09893429]
[1761264657669,3.49564297,191.62,191.61,28.78893429]
[1761264659754,3.49564297,191.62,191.61,28.09893429]
[1761264660481,7.8591801,191.62,191.6,5.21920668]
[1761264660785,3.49564297,191.61,191.6,5.21920668]
[1761264664393,7.8591801,191.61,191.6,5.21920668]
[1761264664980,7.8591801,191.61,191.6,5.90920668]
[1761264665486,7.8591801,191.61,191.6,5.21920668]
[1761264666295,3.49564297,191.61,191.6,5.90920668]
[1761264667304,7.8591801,191.61,191.6,5.90920668]
[1761264667889,7.8591801,191.61,191.6,5.21920668]
[1761264668199,7.8591801,191.61,191.59,0.2]
[1761264668200,13.82169997,191.61,191.59,0.2]
[1761264668379,3.49564297,191.6,191.59,0.2]
[1761264668779,39.93564297,191.6,191.59,0.2]
[1761264669202,49.63204036,191.6,191.59,0.2]
[1761264669509,43.83601334,191.6,191.59,0.2]
[1761264670172,39.93564297,191.6,191.59,0.2]
[1761264671302,43.83521696,191.6,191.59,0.2]
[1761264671894,44.46521696,191.6,191.59,0.2]
[1761264673104,7.39521696,191.6,191.59,0.86]
[1761264673311,3.49564297,191.6,191.59,6.07947909]
[1761264673604,3.49564297,191.6,191.59,5.41947909]
[1761264674001,3.49564297,191.6,191.59,0.2]
[1761264674207,7.88094663,191.6,191.59,0.2]
[1761264675095,3.49564297,191.6,191.59,0.2]
[1761264675297,7.88094663,191.6,191.59,0.2]
[1761264676116,3.49564297,191.6,191.59,0.2]
[1761264676300,7.88094663,191.6,191.59,5.41947909]
[1761264676489,3.49564297,191.6,191.59,5.41947909]
[1761264676981,8.02392701,191.6,191.59,0.2]
[1761264678293,8.02392701,191.6,191.54,5.22084159]
[1761264678487,4.38545593,191.58,191.54,20.89850875]
[1761264678687,3.49564297,191.57,191.54,5.22084159]
[1761264678885,3.49564297,191.56,191.55,0.66]
[1761264679108,3.49564297,191.56,191.55,5.88056904]
[1761264680419,3.49564297,191.56,191.55,5.22056904]
[1761264681413,3.49564297,191.56,191.54,5.22084159]
[1761264681627,3.49564297,191.55,191.54,5.22084159]
[1761264682711,8.5110989,191.55,191.51,5.22155224]
[1761264682912,3.49564297,191.54,191.51,5.22155224]
[1761264683103,39.93564297,191.53,191.51,10.44239383]
[1761264683305,3.49564297,191.52,191.51,5.22155224]
[1761264686838,3.49564297,191.52,191.51,5.88155224]
[1761264687522,3.49564297,191.52,191.51,21.56085816]
[1761264693326,4.38545593,191.59,191.54,22.88]
[1761264693626,36.46,191.63,191.56,22.88]
[1761264693925,37.09,191.63,191.56,22.88]
[1761264694118,37.09,191.63,191.56,23.6]
[1761264694293,37.09,191.63,191.57,0.72]
[1761264694497,37.09,191.63,191.57,16.39520965]
[1761264694715,0.63,191.62,191.58,5.21975153]
[1761264694920,0.63,191.62,191.55,5.22056904]
[1761264695094,4.52253569,191.62,191.55,5.22056904]
[1761264695298,4.52253569,191.62,191.56,15.6768479]
[1761264695612,4.52253569,191.62,191.53,72.39233646]
[1761264695613,10.87647521,191.6,191.53,5.22093897]
[1761264695923,40.35253569,191.59,191.53,5.22093897]
[1761264696113,3.89253569,191.58,191.53,5.22093897]
[1761264696313,4.52253569,191.58,191.53,5.22093897]
[1761264696524,0.63,191.57,191.53,5.22093897]
[1761264696721,36.46,191.56,191.53,5.22093897]
[1761264698633,37.09,191.56,191.53,5.22093897]
[1761264701434,0.63,191.55,191.52,5.2213868]
[1761264701736,36.46,191.56,191.53,16.3668479]
[1761264702113,36.44,191.56,191.53,15.6768479]
[1761264702409,36.44,191.56,191.52,18.2748538]
[1761264702618,36.44,191.56,191.53,16.36930592]
[1761264703019,0.63,191.62,191.54,0.69]
[1761264703212,40.33497736,191.61,191.54,0.69]
[1761264703410,3.89497736,191.6,191.54,0.69]
[1761264704011,3.89497736,191.6,191.55,15.67766716]
[1761264704227,36.44,191.61,191.56,5.22029651]
[1761264704535,3.89635937,191.6,191.56,5.91029651]
[1761264704827,36.44,191.61,191.57,0.69]
[1761264705017,3.89635795,191.6,191.57,0.69]
[1761264705222,3.50687882,191.59,191.58,5.21975153]
[1761264706443,3.50687882,191.59,191.58,5.90975153]
[1761264707210,8.03451301,191.59,191.57,15.67602873]
[1761264707514,3.50687882,191.58,191.55,18.96199164]
[1761264707840,0.63,191.68,191.58,22.88]
[1761264708017,31.87708947,191.67,191.58,22.88]
[1761264708338,3.89708947,191.66,191.59,0.69]
[1761264708515,3.89708947,191.65,191.59,16.36193417]
[1761264708835,27.98,191.67,191.59,16.36193417]
[1761264709041,3.8962587,191.66,191.6,25.64799082]
[1761264709215,27.98,191.67,191.6,25.64799082]
[1761264709216,3.8962587,191.65,191.6,25.64799082]
[1761264709416,27.98,191.67,191.61,0.69]
[1761264709632,3.89595416,191.66,191.61,0.69]
[1761264709932,3.89595416,191.65,191.61,0.69]
[1761264710139,36.44,191.67,191.62,5.21866193]
[1761264710329,3.89565367,191.66,191.62,18.26531676]
[1761264710524,36.44,191.67,191.65,1.67269186]
[1761264710727,10.87647521,191.71,191.66,1.67269186]
[1761264710927,40.33543978,191.7,191.63,0.69]
[1761264711134,3.89543978,191.69,191.63,0.69]
[1761264711336,3.89543978,191.68,191.63,0.69]
[1761264711515,37.07,191.7,191.63,0.69]
[1761264711716,3.89452494,191.69,191.63,0.69]
[1761264711938,3.89452494,191.68,191.63,0.69]
[1761264712236,37.07,191.7,191.67,1.67269186]
[1761264712439,0.63,191.76,191.69,3.34538372]
[1761264712619,0.1,191.89,191.7,7.38076744]
[1761264712620,3.89325519,191.75,191.7,7.38076744]
[1761264712819,13.74,191.77,191.74,1.67269186]
[1761264713122,3.89257021,191.76,191.71,14.43]
[1761264713322,3.89257021,191.75,191.71,14.43]
[1761264713634,3.89257021,191.74,191.71,14.43]